[Event "44th Chess Olympiad Open 2022"]
[Site "Chennai"]
[Date "2022.07.30"]
[Round "2.21"]
[White "Yilmaz, Mustafa"]
[Black "Greet, Andrew N"]
[Result "1-0"]
[WhiteElo "2634"]
[BlackElo "2392"]
[Annotator "TA"]
[PlyCount "117"]
[EventDate "2022.??.??"]
[TimeControl "60"]

{[%evp 17,117,15,24,25,16,11,14,15,26,6,20,34,29,0,6,0,0,0,0,0,18,12,73,70,82,
82,76,93,183,175,199,10,35,33,18,40,56,44,233,126,616,594,556,576,551,532,1312,
454,551,418,423,375,389,366,450,422,504,513,488,478,773,758,610,164,152,0,639,
781,779,766,531,480,743,743,699,673,4994,6287,5849,4743,5620,5812,5481,5141,
3231,2985,3164,2876,29954,29954,29959,29961,29954,29955,29963,29964,29961,
29959,29957,29958,29938,5101]} 1. d4 {[%emt 0:00:04]} e6 {[%emt 0:00:13]} 2. c4
{[%emt 0:00:09]} f5 {[%emt 0:00:11]} 3. g3 {[%emt 0:00:12]} Nf6 {[%emt 0:00:08]
} 4. Bg2 {[%emt 0:00:00]} d5 {[%emt 0:01:13]} 5. Nf3 {[%emt 0:01:49]} Bd6 {
[%emt 0:00:39]} 6. Qc2 {[%emt 0:01:36]} O-O {[%emt 0:02:38]} 7. O-O {[%emt 0:
00:00]} c6 {[%emt 0:02:10]} 8. Bf4 {[%emt 0:05:21]} Bxf4 {[%emt 0:00:17]} 9.
gxf4 {[%emt 0:00:02]} Ne4 {[%emt 0:14:24]} 10. Nc3 {[%emt 0:04:28] A90: Dutch
Defence: Miscellaneous and Modern Stonewall (with ...Bd6).} Nd7 {[%emt 0:02:19]
} 11. Rac1 $5 {[%emt 0:01:13] A promising side line.} Rf6 {[%emt 0:00:00]} 12.
e3 {[%emt 0:05:20] The position is equal.} Rh6 {[%emt 0:04:31] [#]} 13. h3 $146
{[%emt 0:12:02]} ({Predecessor:} 13. Nxe4 fxe4 14. Ne5 Qh4 15. h3 Nxe5 16. fxe5
Bd7 17. f3 Qg5 18. fxe4 Qxe3+ 19. Qf2 Qxf2+ 20. Rxf2 dxe4 {0-1 (40) Arbouche,M
(2234)-Chahrani,I (2275) Amman 2008}) 13... Qe7 {[%emt 0:00:00]} 14. Kh2 {
[%emt 0:03:38]} b6 {[%emt 0:09:00]} 15. Rg1 {[%emt 0:05:31]} Bb7 {[%emt 0:08:
41]} 16. Nxe4 {[%emt 0:14:16]} fxe4 {[%emt 0:03:36]} 17. Ne5 {[%emt 0:02:49]}
Nxe5 {[%emt 0:01:04]} 18. dxe5 {[%emt 0:00:39]} Qh4 {[%emt 0:00:00]} 19. Bf1 {
[%emt 0:31:03]} d4 {[%emt 0:19:03]} (19... c5 $11) 20. c5 $1 $16 {[%emt 0:00:
00]} d3 {[%emt 0:02:03]} 21. Qd2 {[%emt 0:00:00] Strongly threatening Rg3.}
bxc5 {[%emt 0:06:25]} 22. Rg3 {[%emt 0:00:00]} Qd8 {[%emt 0:00:00]} (22... c4
$16) 23. Bg2 $1 $18 {[%emt 0:00:00]} Qd5 {[%emt 0:00:24] [#]} 24. f3 $2 {
[%emt 0:00:00]} (24. b3 $1 $18) 24... c4 {[%emt 0:01:06]} 25. fxe4 {[%emt 0:00:
00]} Qb5 {[%emt 0:00:06]} 26. Bf3 {[%emt 0:00:00]} Ba6 {[%emt 0:00:00]} 27.
Rcg1 {[%emt 0:02:07]} Rg6 {[%emt 0:00:26]} (27... g6 $14) 28. Bg4 {[%emt 0:03:
23]} (28. Rxg6 $18 hxg6 29. Qg2 (29. Rxg6 Re8 $18)) 28... Rb8 $2 {[%emt 0:00:
18] [#]} (28... Re8 $16) 29. Bxe6+ $1 {[%emt 0:03:23]} Kf8 {[%emt 0:01:32]} 30.
Rxg6 {[%emt 0:00:23]} hxg6 {[%emt 0:00:18]} 31. b3 {[%emt 0:00:59]} cxb3 {
[%emt 0:00:59]} 32. axb3 {[%emt 0:00:24]} (32. Qg2 $142 d2 33. Qxg6 (33. Qxd2
Qd3 $18) 33... Qe2+ 34. Rg2) 32... Qc5 {[%emt 0:00:00]} 33. Rxg6 {[%emt 0:00:
39] aiming for Qe1.} Qc2 {[%emt 0:00:48]} 34. Rg2 {[%emt 0:00:11][%cal Yg6g2,
Yg2d2,Yd2a2] Black must now prevent Qa5.} Qxd2 {[%emt 0:00:20]} 35. Rxd2 {
[%emt 0:00:02] Endgame KRB-KRB} Rb4 {[%emt 0:01:18]} 36. Kg3 {[%emt 0:01:04]}
Ke7 {[%emt 0:00:40]} 37. Bc4 {[%emt 0:01:30]} Bxc4 {[%emt 0:00:07]} 38. bxc4 {
[%emt 0:00:01] KR-KR} Rb3 {[%emt 0:00:29]} (38... Rxc4 $142 39. Rxd3 a5) 39.
Kf3 {[%emt 0:00:36]} a5 {[%emt 0:00:17]} 40. Ra2 $2 {[%emt 0:00:42]} (40. f5 a4
41. e6 (41. Rg2 Kf8 $18)) 40... Rb1 {[%emt 0:00:29]} 41. Rd2 $2 {[%emt 0:02:42]
} (41. Rxa5 $2 d2 42. Ra7+ Ke6 43. f5+ Kxe5 $19) (41. e6 $16) 41... Rb3 $1 {
[%emt 0:04:07]} 42. f5 {[%emt 0:03:35][%cal Yf4f5,Yf5g6,Yg6g7]} a4 {[%emt 0:02:
24]} 43. e6 {[%emt 0:00:57]} (43. Rg2 Kf8 $18) 43... a3 {[%emt 0:00:00]} 44. e5
{[%emt 0:00:00]} g6 {[%emt 0:10:57]} (44... Rb2 $2 45. Rxd3 a2 46. Rd7+ Kf8 47.
Rf7+ Ke8 48. Ra7) (44... Rb1 $142 45. Ke4 (45. Rxd3 $2 a2 $19) 45... g6 46.
fxg6 Kxe6) 45. fxg6 {[%emt 0:05:14] Hoping for g7.} Kxe6 {[%emt 0:00:48]} 46.
Ke4 {[%emt 0:01:10]} c5 {[%emt 0:02:56]} 47. Rf2 {[%emt 0:06:10] Threatening
mate with g7.} Rb8 {[%emt 0:00:37]} 48. g7 {[%emt 0:02:04]} Rg8 {[%emt 0:00:43]
} 49. Rf6+ {[%emt 0:00:33]} Ke7 {[%emt 0:00:06]} 50. Kxd3 {[%emt 0:00:15]} Rxg7
{[%emt 0:00:45]} 51. Ra6 {[%emt 0:00:01] Ra7+ would kill now.} Rg3 {[%emt 0:00:
00]} 52. Rxa3 {[%emt 0:01:01]} Rxh3 {[%emt 0:01:03]} 53. Ra5 {[%emt 0:01:44]
White mates.} Ke6 {[%emt 0:01:00]} 54. Rxc5 {[%emt 0:00:06]} Rh4 {[%emt 0:00:
00]} 55. Rd5 {[%emt 0:00:47]} Rg4 {[%emt 0:01:17]} 56. e4 {[%emt 0:00:47]} Rg1
{[%emt 0:00:24]} 57. Kd4 {[%emt 0:01:51]} Rd1+ {[%emt 0:00:17]} 58. Kc5 {
[%emt 0:00:02]} Re1 {[%emt 0:00:11]} 59. Kc6 {[%emt 0:01:38] Weighted Error
Value: White=0.63/Black=0.46} (59. Kb6 $142 Rxe4 60. Rd6+ Ke7 61. c5 Rxe5 62.
Rd3 Re1 63. c6 Rc1 64. Kb7) 1-0

[Event "44th Chess Olympiad Open 2022"]
[Site "Chennai"]
[Date "2022.07.30"]
[Round "2.21"]
[White "Sanal, Vahap"]
[Black "Olson, Hamish"]
[Result "1-0"]
[WhiteElo "2574"]
[BlackElo "2343"]
[Annotator "TA"]
[PlyCount "103"]
[EventDate "2022.??.??"]
[TimeControl "60"]

{[%evp 20,103,40,35,33,29,37,35,30,43,41,40,43,40,39,35,37,32,50,16,14,22,21,
12,32,32,52,14,39,27,42,17,14,8,12,14,20,0,15,0,22,21,21,21,22,21,27,5,21,37,
78,44,59,52,68,28,43,0,0,0,0,0,0,0,0,0,0,0,0,8,664,700,682,678,682,662,1004,
1029,1041,903,894,888,823,808,1575,1389]} 1. e4 {[%emt 0:00:02]} e5 {[%emt 0:
00:00]} 2. Nf3 {[%emt 0:00:09]} Nc6 {[%emt 0:00:05]} 3. Bb5 {[%emt 0:00:16]} a6
{[%emt 0:00:23]} 4. Ba4 {[%emt 0:00:07]} Nf6 {[%emt 0:00:08]} 5. O-O {[%emt 0:
00:00]} Be7 {[%emt 0:00:12]} 6. Re1 {[%emt 0:00:15]} b5 {[%emt 0:00:12]} 7. Bb3
{[%emt 0:00:07]} O-O {[%emt 0:00:16]} 8. h3 {[%emt 0:00:58]} Na5 {[%emt 0:00:
00]} 9. Nxe5 {[%emt 0:05:20]} Nxb3 {[%emt 0:01:13]} 10. axb3 {[%emt 0:00:07]}
Bb7 {[%emt 0:00:17]} 11. d3 {[%emt 0:00:09]} d5 $1 {[%emt 0:00:19] C88: Closed
Ruy Lopez: Anti-Marshall Systems.} 12. exd5 {[%emt 0:00:38]} Qxd5 {[%emt 0:00:
00][%csl Gb7][%cal Rd5g2]} 13. Qf3 {[%emt 0:00:10]} Bd6 {[%emt 0:00:21] [#]
And now ...Qxe5 would win. White is slightly better.} 14. Kf1 $1 {[%emt 0:00:
00]} Rfb8 {[%emt 0:00:22] Threatens to win with ...Qxe5.} 15. Qxd5 {[%emt 0:00:
00]} Nxd5 {[%emt 0:03:50]} 16. Bd2 {[%emt 0:00:26]} c5 {[%emt 0:02:11]} 17. Nc3
{[%emt 0:04:02]} Nb4 {[%emt 0:00:42]} 18. Rac1 {[%emt 0:00:15] [#]} Re8 $146 {
[%emt 0:07:05]} ({Predecessor:} 18... Rd8 19. Ng4 f5 20. Ne5 Rac8 21. Re2 Bf8
22. Bf4 Rd6 23. f3 Rd4 24. Be3 Rdd8 {½-½ (68) Grobler,D (2279)-Reed,A (2179)
ICCF email 2019}) 19. Ng4 {[%emt 0:09:24]} Rxe1+ {[%emt 0:02:37]} 20. Bxe1 {
[%emt 0:00:17]} f5 {[%emt 0:03:55]} 21. Ne3 {[%emt 0:00:08]} g6 {[%emt 0:00:48]
} 22. Ne2 {[%emt 0:23:58]} Re8 {[%emt 0:18:40]} 23. Bd2 {[%emt 0:00:00]} Kf7 {
[%emt 0:07:23]} 24. f3 {[%emt 0:00:00]} h5 {[%emt 0:12:50]} 25. Kf2 {[%emt 0:
00:00]} h4 {[%emt 0:00:00]} 26. Nf1 {[%emt 0:18:14]} Kf6 {[%emt 0:00:00]} 27.
Bc3+ {[%emt 0:06:19]} Kf7 {[%emt 0:00:00]} 28. Bd2 {[%emt 0:00:07]} Kf6 {
[%emt 0:00:13]} 29. Bc3+ {[%emt 0:04:52]} Kf7 {[%emt 0:00:09]} 30. Bxb4 {
[%emt 0:00:46]} cxb4 {[%emt 0:00:13]} 31. c4 {[%emt 0:00:37]} bxc3 {[%emt 0:00:
00]} 32. bxc3 {[%emt 0:00:07][%cal Yb2c3,Yc3c4,Yc4c5]} g5 {[%emt 0:00:00]} 33.
c4 {[%emt 0:02:15]} b4 {[%emt 0:05:37]} 34. d4 {[%emt 0:02:12]} g4 {[%emt 0:01:
11]} 35. hxg4 {[%emt 0:06:13]} fxg4 {[%emt 0:00:25]} 36. fxg4 {[%emt 0:00:06]}
Bxg2 $1 {[%emt 0:12:01] A strong pair of Bishops.} 37. c5 {[%emt 0:00:02]} ({
Reject} 37. Kxg2 Rxe2+ 38. Kf3 Rb2) 37... Bc7 {[%emt 0:06:55] ...h3 is the
strong threat.} 38. Ne3 {[%emt 0:00:08]} Rxe3 {[%emt 0:03:20]} 39. Kxe3 $11 {
[%emt 0:00:17] Endgame KRN-KB} h3 {[%emt 0:00:57]} 40. Kf2 {[%emt 0:02:32]} Bd5
{[%emt 0:01:00]} 41. Ng1 $1 {[%emt 0:08:32]} h2 {[%emt 0:00:00]} ({Resist} 
41... Bf4 42. Ra1 h2 43. Nf3 $14) 42. Nf3 {[%emt 0:00:08] Hoping for c6.} a5 $1
{[%emt 0:08:53]} 43. c6 {[%emt 0:06:38] aiming for Ke3.} a4 {[%emt 0:14:36]} ({
Don't do} 43... Bf4 44. c7 Bb7 45. Ne5+ Ke6 46. Rd1 $16) 44. bxa4 {[%emt 0:00:
57]} b3 $2 {[%emt 0:01:00] [#] Loses the game.} (44... Ba2 $11) 45. Nxh2 $1 $18
{[%emt 0:03:03] White is clearly winning.} Be4 {[%emt 0:01:05]} 46. Ke3 {
[%emt 0:01:14]} Bg6 {[%emt 0:01:37] [#]} 47. Rf1+ $1 {[%emt 0:00:22]} Ke7 {
[%emt 0:00:29]} 48. Nf3 {[%emt 0:00:16]} b2 {[%emt 0:00:00]} 49. Nd2 {[%emt 0:
02:55]} Bc2 {[%emt 0:01:13]} 50. g5 {[%emt 0:02:16]} Ba5 {[%emt 0:00:36]} 51.
Nb1 {[%emt 0:01:51]} Bb4 {[%emt 0:00:41] [#]} 52. Rf2 $1 {[%emt 0:00:57]
Weighted Error Value: White=0.07 (flawless) /Black=0.19 (very precise)} 1-0

[Event "44th Chess Olympiad Open 2022"]
[Site "Chennai"]
[Date "2022.07.30"]
[Round "2.21"]
[White "Gourlay, Iain"]
[Black "Can, Emre"]
[Result "0-1"]
[WhiteElo "2321"]
[BlackElo "2606"]
[Annotator "TA"]
[PlyCount "84"]
[EventDate "2022.??.??"]
[TimeControl "60"]

{[%evp 9,84,11,13,4,23,29,28,22,27,31,20,21,34,21,26,14,23,-22,-13,-7,0,-33,
-31,-36,-34,-29,-44,-35,-25,-37,0,0,0,0,0,2,12,-49,-52,-58,-14,-37,-30,-81,-81,
-84,-69,-83,-81,-272,-256,-277,-266,-345,-308,-447,-441,-589,-451,-438,-437,
-487,-487,-494,-490,-411,-405,-678,-658,-12828,-12827,-6604,-6536,-1524,-934,
-845,-781]} 1. d4 {[%emt 0:00:04]} Nf6 {[%emt 0:00:29]} 2. Nf3 {[%emt 0:00:13]}
g6 {[%emt 0:01:58]} 3. g3 {[%emt 0:02:04]} c5 {[%emt 0:01:39]} 4. dxc5 {
[%emt 0:00:48]} Qa5+ {[%emt 0:02:00]} 5. Nfd2 {[%emt 0:01:07]} Bg7 {[%emt 0:00:
00]} 6. Bg2 {[%emt 0:03:10] A49:1 d4 Nf6 2 Nf3 g6 3 g3: Anti-King's Indian
systems.} O-O {[%emt 0:05:04]} 7. Nc3 {[%emt 0:01:12]} Qxc5 {[%emt 0:01:19]} 8.
Nb3 {[%emt 0:01:16] White has an edge.} Qb6 {[%emt 0:06:53]} 9. Bg5 {[%emt 0:
00:00]} h6 {[%emt 0:05:54]} 10. Be3 {[%emt 0:04:21]} Qd8 {[%emt 0:00:49]} 11.
Qd2 {[%emt 0:01:36]} Kh7 {[%emt 0:13:08] [#]} 12. h4 $146 {[%emt 0:07:48][%cal
Yh4h5] h5! is the strong threat.} ({Predecessor:} 12. O-O-O Nc6 13. h4 h5 14.
Ne4 d6 15. Nxf6+ Bxf6 16. Bh6 Rh8 17. Bg5 Bg7 18. Bd5 {0-1 (30) Perez Garcia,A
(2319)-Grigoryan,K (2647) Seville 2021}) 12... h5 $1 {[%emt 0:00:00]} 13. Ne4 {
[%emt 0:11:50]} Nxe4 {[%emt 0:13:14]} 14. Bxe4 {[%emt 0:00:11][%cal Yg3g4]} Nc6
{[%emt 0:07:08][%cal Yb8c6,Yc6e5,Ye5d3]} 15. O-O-O {[%emt 0:21:16]} d6 {
[%emt 0:00:35]} 16. f3 {[%emt 0:04:36]} Ne5 {[%emt 0:01:01]} 17. Bd3 {[%emt 0:
00:00] Against Nc4} Nxd3+ {[%emt 0:02:05]} 18. exd3 {[%emt 0:00:40][%cal Yg3g4]
} a5 {[%emt 0:04:49][%cal Ya7a5,Ya5a4]} 19. g4 {[%emt 0:01:52]} a4 {[%emt 0:00:
17]} (19... hxg4 $5 {[%cal Ra5a4]} 20. h5 g5 $11) 20. Nd4 {[%emt 0:00:00]} Ra5
{[%emt 0:06:19]} 21. Rdg1 {[%emt 0:04:27]} Rh8 {[%emt 0:03:07]} 22. Ne2 {
[%emt 0:01:23]} Kg8 {[%emt 0:03:25]} 23. gxh5 {[%emt 0:01:25]} (23. Qb4 $11 Ra6
24. a3) 23... Raxh5 $15 {[%emt 0:02:49]} ({Resist} 23... Rhxh5 24. Nf4 $11) 24.
Bg5 $1 {[%emt 0:01:18]} f6 {[%emt 0:05:14]} 25. Be3 {[%emt 0:00:51]} g5 $36 {
[%emt 0:00:24][%cal Yg6g5,Yg5h4,Yh4h3,Yh3h2] Black has good play.} 26. f4 {
[%emt 0:01:09]} (26. Bf2 $11 {keeps the balance.}) 26... Rxh4 $17 {[%emt 0:00:
54]} 27. Rxh4 {[%emt 0:00:06]} gxh4 {[%emt 0:00:05]} ({Of course not} 27...
Rxh4 $6 28. fxg5 Rg4 29. Rxg4 Bxg4 30. gxf6 Bxf6 31. Nf4 $11) 28. f5 {[%emt 0:
03:09]} Bxf5 {[%emt 0:03:01]} 29. Nd4 $2 {[%emt 0:00:00] Now White is beyond
hope.} (29. Bh6 $17 Rh7 30. Qf4) 29... Bc8 $19 {[%emt 0:01:22]} ({Stronger than
} 29... Bh3 30. Bh6 Rh7 31. Qf2 $17) 30. Qg2 {[%emt 0:00:00][%csl Gg1][%cal
Rg2g7] [#]} Qf8 {[%emt 0:00:45]} 31. Qd5+ {[%emt 0:00:18]} Qf7 {[%emt 0:00:19]}
32. Qa5 {[%emt 0:00:14]} (32. Nf5 {was the only defense.} Qxd5 33. Nxe7+ Kf7
34. Nxd5) 32... h3 {[%emt 0:00:32]} 33. Nf5 {[%emt 0:01:29]} Bxf5 {[%emt 0:01:
05]} 34. Qxf5 {[%emt 0:00:59]} Rh5 {[%emt 0:00:48]} 35. Qc8+ {[%emt 0:00:00]}
Kh7 {[%emt 0:00:33] [#] Strongly threatening ...h2.} 36. Qxb7 {[%emt 0:00:00]}
h2 {[%emt 0:00:53]} 37. Rh1 {[%emt 0:00:08]} Qxa2 {[%emt 0:00:00] And now ...
f5 would win.} 38. Bf4 {[%emt 0:00:41]} (38. Qf3 $142 Rh4 39. Qg2) 38... f5 {
[%emt 0:00:39] Black is clearly winning.} 39. Rxh2 {[%emt 0:00:00]} Rxh2 {
[%emt 0:00:18]} 40. Bxh2 {[%emt 0:00:06]} Bh6+ {[%emt 0:00:21]} 41. Kd1 {
[%emt 0:02:56]} Qb1+ {[%emt 0:00:35]} 42. Ke2 {[%emt 0:00:04]} Qxc2+ {[%emt 0:
00:09] Weighted Error Value: White=0.57/Black=0.07 (flawless)} 0-1

[Event "44th Chess Olympiad Open 2022"]
[Site "Chennai"]
[Date "2022.07.30"]
[Round "2.21"]
[White "Tate, Alan"]
[Black "Ali Marandi, Cemil Can"]
[Result "0-1"]
[WhiteElo "2313"]
[BlackElo "2561"]
[Annotator "TA"]
[PlyCount "44"]
[EventDate "2022.??.??"]
[TimeControl "60"]

{[%evp 9,44,9,26,9,41,13,37,23,43,29,32,22,33,31,41,31,70,64,69,38,65,64,71,61,
83,71,78,77,134,81,81,69,69,74,68,-270,-257]} 1. Nf3 {[%emt 0:00:09]} d5 {
[%emt 0:00:13]} 2. g3 {[%emt 0:00:05]} Bg4 {[%emt 0:01:58]} 3. Bg2 {[%emt 0:00:
00]} Nd7 {[%emt 0:00:08]} 4. h3 {[%emt 0:06:18]} Bxf3 {[%emt 0:01:49]} 5. Bxf3
{[%emt 0:00:22]} e6 {[%emt 0:00:25]} 6. d4 {[%emt 0:01:58] A07: Réti Opening:
New York and Capablanca Systems.} Bd6 {[%emt 0:04:12] [#]} 7. Nd2 $146 {
[%emt 0:06:12]} ({Predecessor:} 7. e4 dxe4 8. Bxe4 c6 9. O-O Ngf6 10. Bg2 O-O
11. c4 e5 12. Nc3 exd4 13. Qxd4 {1-0 (47) Antonsen,M (2428)-Petersen,S (2089)
Copenhagen 2019}) 7... Ne7 {[%emt 0:02:50]} 8. e4 {[%emt 0:04:28] White is
slightly better.} c6 {[%emt 0:00:12]} 9. O-O {[%emt 0:02:18]} O-O {[%emt 0:00:
00]} 10. Re1 {[%emt 0:01:06]} Re8 {[%emt 0:05:51]} 11. c3 {[%emt 0:04:35]} e5 {
[%emt 0:00:51]} 12. exd5 {[%emt 0:04:46]} cxd5 {[%emt 0:00:17]} 13. dxe5 {
[%emt 0:00:26]} Nxe5 {[%emt 0:00:30]} 14. Nb3 {[%emt 0:01:45]} Qd7 {[%emt 0:00:
00]} 15. Bg2 {[%emt 0:04:45]} ({Wrong is} 15. Bxd5 $2 Nxd5 16. Qxd5 Nf3+ $1 17.
Qxf3 Rxe1+ 18. Kh2 Qb5 $19) 15... Nc4 {[%emt 0:00:32]} 16. Nd2 {[%emt 0:22:39]}
Rad8 {[%emt 0:07:15]} 17. Nxc4 {[%emt 0:01:49]} dxc4 {[%emt 0:00:00]} 18. Qg4 {
[%emt 0:04:13]} Qb5 {[%emt 0:08:05] [#]} ({Black should try} 18... Qxg4 19.
hxg4 Bc5) 19. Bf1 {[%emt 0:07:17]} ({Better is} 19. a4 $1 {[%cal Ra4b5]} Qb6
20. Be3 Qxb2 21. Qxc4) 19... Ng6 $16 {[%emt 0:08:48]} 20. Bg5 {[%emt 0:07:07]}
Rc8 {[%emt 0:05:38]} 21. Rxe8+ {[%emt 0:05:49]} Rxe8 {[%emt 0:00:00]} 22. Qxc4
$2 {[%emt 0:02:06]} Qxg5 {[%emt 0:00:19] Weighted Error Value: White=0.31/
Black=0.19 (very precise)} 0-1

[Event "44th Chess Olympiad Open 2022"]
[Site "Chennai"]
[Date "2022.07.30"]
[Round "2.22"]
[White "Nabaty, Tamir"]
[Black "Cawdery, Daniel"]
[Result "1-0"]
[WhiteElo "2631"]
[BlackElo "2417"]
[Annotator "TA"]
[PlyCount "55"]
[EventDate "2022.??.??"]
[TimeControl "60"]

{[%evp 16,55,35,36,19,22,11,17,27,26,16,31,37,58,36,48,66,40,61,58,389,383,388,
385,402,381,492,468,500,479,667,654,875,856,1040,1000,1234,1164,5393,5393,5231,
4874]} 1. d4 {[%emt 0:00:03]} Nf6 {[%emt 0:00:10]} 2. c4 {[%emt 0:00:11]} g6 {
[%emt 0:00:27]} 3. f3 {[%emt 0:00:10]} d5 {[%emt 0:01:16]} 4. cxd5 {[%emt 0:00:
00]} Nxd5 {[%emt 0:00:01]} 5. e4 {[%emt 0:00:08]} Nb6 {[%emt 0:00:05]} 6. Be3 {
[%emt 0:00:23]} Bg7 {[%emt 0:00:08]} 7. Nc3 {[%emt 0:00:27]} O-O {[%emt 0:00:
00]} 8. Qd2 {[%emt 0:02:50]} e5 {[%emt 0:02:57]} 9. d5 {[%emt 0:00:00]} c6 {
[%emt 0:00:10] D70: Grünfeld: Unusual White 3rd moves (met by ...d5).} 10. h4
{[%emt 0:00:36]} cxd5 $1 {[%emt 0:02:20]} 11. exd5 {[%emt 0:00:00]} N8d7 {
[%emt 0:01:50] The position is equal.} 12. h5 {[%emt 0:00:00]} Nf6 {[%emt 0:00:
00][%csl Yd5,Yh5]} 13. hxg6 {[%emt 0:00:02]} fxg6 {[%emt 0:00:08][%cal Rf6d5]}
14. O-O-O {[%emt 0:05:40]} Bd7 {[%emt 0:01:46]} 15. Kb1 {[%emt 0:20:51]} Rc8 {
[%emt 0:17:09]} 16. d6 {[%emt 0:00:00]} Be6 {[%emt 0:06:45]} 17. Nh3 $1 {
[%emt 0:21:25] [#] Ng5 is the strong threat.} Nfd5 $146 {[%emt 0:04:13] This
move loses the game for Black.} (17... Nbd5 $1 $14 18. Nxd5 Bxd5) ({
Predecessor:} 17... Nbd5 18. Nxd5 Bxd5 19. Bg5 Be6 20. Nf2 Qd7 21. Qb4 a6 22.
Bxf6 Bxf6 23. Ne4 Bf5 {1-0 (31) Hillarp Persson,T (2530)-Wojciechowski,P (2159)
Jersey 2004}) 18. Nxd5 $18 {[%emt 0:00:00]} ({Not} 18. Ng5 Qxd6 19. Nce4 Qd7
$16) 18... Nxd5 {[%emt 0:12:01]} 19. Ng5 {[%emt 0:27:29]} Bf5+ {[%emt 0:31:00]}
20. Bd3 {[%emt 0:00:00] Strongly threatening Bxf5. Really sharp!} ({Weaker is} 
20. Ka1 Nxe3 21. Qxe3 Qb6 22. Qb3+ Qxb3 23. axb3 Bc2 $18) 20... Qd7 {[%emt 0:
00:00]} 21. Nxh7 {[%emt 0:00:00] White is clearly winning.} Rfd8 {[%emt 0:00:
00]} 22. Bg5 {[%emt 0:01:23]} Nf4 {[%emt 0:01:33]} 23. Be4 {[%emt 0:00:00] [#]
And now Nf6+ would win.} Bxe4+ {[%emt 0:00:00]} 24. fxe4 {[%emt 0:00:00]} Qc6 {
[%emt 0:13:10]} 25. d7 {[%emt 0:03:41]} Qxe4+ {[%emt 0:00:00]} 26. Ka1 {
[%emt 0:00:00]} Ra8 {[%emt 0:00:00]} 27. Nf6+ {[%emt 0:00:00]} Bxf6 {[%emt 0:
00:00]} 28. Bxf6 {[%emt 0:00:00] Weighted Error Value: White=0.01 (flawless) /
Black=0.77} 1-0